fUSD/lending_fUSD_20240601
["ID","MTS","AMOUNT","RATE_DAILY","PERIOD"]
[328376046,1717284633326,-1264.07597061,0.00015,2]
[328376047,1717284633336,-8096.57981275,0.00015,2]
[328376048,1717284633346,-619.40919627,0.00015,2]
[328376049,1717284633355,-151.0,0.00015,2]
[328376050,1717284633364,-128.50792906,0.00015068,2]
[328376051,1717284633385,-156.23207094,0.00015068,2]
[328376052,1717284633395,-150.0,0.00015068,2]
[328376053,1717284633404,-200.0,0.00015135,2]
[328376054,1717284633413,-3164.4395674,0.000154,2]
[328376055,1717284633425,-547.43728168,0.000154,2]
[328376056,1717284633437,-1421.18809713,0.000154,2]
[328376057,1717284633448,-558.15546194,0.000154,2]
[328376058,1717284633459,-1266.60175907,0.000154,2]
[328376059,1717284633470,-1501.57922295,0.000154,2]
[328376060,1717284633482,-7194.41941059,0.000154,2]
[328376061,1717284633491,-284.74,0.00015753,2]
[328376062,1717284633500,-164.97,0.00015831,2]
[328376063,1717284633510,-189.17,0.00015831,2]
[328376064,1717284633519,-177.13,0.00015831,2]
[328376065,1717284633528,-851.86,0.00015853,2]
[328376066,1717284633538,-1000.0,0.00016352,2]
[328376067,1717284633547,-2500.0,0.0001636,2]
[328376068,1717284633556,-284.74,0.00016438,2]
[328376069,1717284633565,-150.0,0.00016438,2]
[328376070,1717284633575,-6143.02,0.00016438,2]
[328376071,1717284633584,-164.97,0.00016484,2]
[328376072,1717284633596,-1226.83205404,0.000165,2]
[328376073,1717284633606,-357.24,0.00016615,2]
[328376074,1717284633615,-179.68,0.00016712,2]
[328376075,1717284633626,-200.0,0.00016816,2]
[328376076,1717284633638,-7500.0,0.00017025,2]
[328376077,1717284633648,-169.25983275,0.00017025,2]
[328376078,1717284633658,-318.61145935,0.00017125,2]
[328376079,1717284633673,-164.97,0.00017137,2]
[328376080,1717284633682,-20126.30399373,0.00017225,2]
[328376081,1717284633696,-903.55095595,0.00017225,2]
[328376082,1717284633707,-518.40021227,0.00017225,2]
[328376083,1717284633719,-1181.42468244,0.00017225,2]
[328376084,1717284633730,-4121.07153573,0.00017225,2]
[328376085,1717284633741,-10781.89455129,0.00017225,2]
[328376086,1717284633752,-1275.75232492,0.00017225,2]
[328376087,1717284633767,-994.53502422,0.00017225,2]
[328376088,1717284633778,-93111.1790288,0.00017225,2]
[328376089,1717284633789,-22483.94645264,0.00017225,2]
[328376090,1717284633800,-6393.22799159,0.00017225,2]
[328376092,1717284641049,-1661.33606084,0.00013656,2]
[328376093,1717284642300,-1396.49996552,0.00013656,2]
[328376094,1717284642310,-1910.76247503,0.00017225,2]
[328376095,1717284642320,-2294.79725672,0.00017225,2]
[328376096,1717284642330,-151.0,0.00017225,2]
[328376097,1717284642339,-560.0,0.000174,2]
[328376098,1717284642349,-164.97,0.00017791,2]
[328376099,1717284642358,-2204.0,0.000178,2]
[328376100,1717284642368,-171.72,0.00017959,2]
[328376101,1717284642377,-1000.0,0.00017987,2]
[328376102,1717284642387,-648.84323961,0.00018,2]
[328376103,1717284642397,-189.17,0.00018444,2]
[328376104,1717284642407,-164.97,0.00018444,2]
[328376105,1717284642416,-200.0,0.00018498,2]
[328376106,1717284642426,-851.86,0.00018593,2]
[328376107,1717284642435,-2500.0,0.0001886,2]
[328376108,1717284642445,-357.24,0.00018879,2]
[328376109,1717284642454,-402.08776905,0.00019,2]
[328376110,1717284642464,-1469.0,0.00019033,2]
[328376111,1717284642473,-976.0,0.00019033,2]
[328376112,1717284642484,-37980.0,0.00019033,2]
[328376113,1717284642493,-197.271,0.00019077,2]
[328376114,1717284642503,-155.305,0.00019077,2]
[328376115,1717284642513,-151.914,0.00019077,2]
[328376116,1717284642522,-150.157,0.00019077,2]
[328376117,1717284642531,-165.0,0.00019077,2]
[328376118,1717284642541,-808.0,0.00019077,2]
[328376120,1717284642550,-150.0,0.00019077,2]
[328376122,1717284642559,-2401.0,0.00019077,2]
[328376123,1717284642568,-446.0,0.00019077,2]
[328376124,1717284642578,-216.0,0.00019077,2]
[328376125,1717284642591,-150.0,0.00019077,2]
[328376126,1717284642600,-1304.0,0.00019077,2]
[328376127,1717284642609,-3163.0,0.00019077,2]
[328376128,1717284642619,-545.0,0.00019077,2]
[328376129,1717284642630,-450.0,0.00019077,2]
[328376130,1717284642639,-289.0,0.00019077,2]
[328376131,1717284642648,-5145.0,0.00019077,2]
[328376132,1717284642657,-357.0,0.00019077,2]
[328376133,1717284642669,-150.0,0.00019077,2]
[328376135,1717284642679,-500.0,0.00019178,2]
[328376137,1717284642689,-500.0,0.00019178,2]
[328376139,1717284642698,-206.23601975,0.00019178,2]
[328376142,1717284642709,-500.0,0.00019178,2]
[328376144,1717284642722,-500.0,0.00019178,2]
[328376146,1717284642732,-405.68557449,0.00019178,2]
[328376148,1717284642742,-500.0,0.00019178,2]
[328376150,1717284642751,-500.0,0.00019178,2]
[328376152,1717284642762,-574.66616936,0.00019178,2]
[328376154,1717284642771,-500.0,0.00019178,2]
[328376156,1717284642781,-426.32922572,0.00019178,2]
[328376158,1717284642791,-205.814779,0.00019178,2]
[328376160,1717284642800,-205.814779,0.00019178,2]
[328376162,1717284642810,-205.814779,0.00019178,2]
[328376164,1717284642820,-205.814779,0.00019178,2]
[328376166,1717284642829,-205.814779,0.00019178,2]
[328376168,1717284642839,-205.814779,0.00019178,2]
[328376170,1717284642849,-205.814779,0.00019178,2]
[328376172,1717284642859,-205.814779,0.00019178,2]
[328376174,1717284642868,-205.814779,0.00019178,2]
[328376176,1717284642878,-205.814779,0.00019178,2]
[328376178,1717284642887,-5099.21,0.00019178,2]
[328376180,1717284642897,-3887.55227938,0.000192,2]
[328376182,1717284642908,-1090.69263814,0.00019603,2]
[328376184,1717284642917,-1000.0,0.00019622,2]
[328376186,1717284642927,-634.50759008,0.0002,2]
[328376188,1717284642936,-863.39280478,0.0002,2]
[328376190,1717284642946,-6248.82552361,0.0002,2]
[328376192,1717284642955,-155.0,0.0002,4]
[328376194,1717284642965,-345.0,0.0002,2]
[328376196,1717284642974,-1272.21947396,0.0002,2]
[328376198,1717284642984,-158.60373146,0.0002,2]
[328376200,1717284642993,-150.0,0.0002,2]
[328376202,1717284643003,-226.50038929,0.000201,2]
[328376204,1717284643013,-200.0,0.0002018,2]
[328376206,1717284643023,-169.2598327,0.0002026,2]
[328376208,1717284643032,-150.0,0.000205,2]
[328376210,1717284643042,-170.97,0.00020548,2]
[328376212,1717284643051,-500.0,0.00020548,2]
[328376214,1717284643061,-500.0,0.00020548,2]
[328376216,1717284643071,-500.0,0.00020548,2]
[328376218,1717284643080,-500.0,0.00020548,2]
[328376220,1717284643090,-500.0,0.00020548,2]
[328376222,1717284643100,-500.0,0.00020548,2]
[328376223,1717284643109,-500.0,0.00020548,2]
[328376224,1717284643119,-500.0,0.00020548,2]
[328376225,1717284643128,-500.0,0.00020548,2]
[328376226,1717284643138,-500.0,0.00020548,2]
[328376227,1717284643147,-500.0,0.00020548,2]
[328376228,1717284643159,-500.0,0.00020548,2]
[328376229,1717284643168,-500.0,0.00020548,2]
[328376230,1717284643177,-500.0,0.00020548,2]
[328376231,1717284643187,-500.0,0.0002097,2]
[328376232,1717284643197,-150.0,0.00021,2]
[328376233,1717284643206,-357.24,0.00021143,2]
[328376234,1717284643216,-2500.0,0.0002136,2]
[328376235,1717284643225,-3369.62,0.0002137,2]
[328376236,1717284643235,-24706.68,0.0002137,2]
[328376237,1717284643244,-500.0,0.0002137,2]
[328376238,1717284643254,-500.0,0.0002137,2]
[328376239,1717284643264,-500.0,0.0002137,2]
[328376240,1717284643273,-500.0,0.0002137,2]
[328376241,1717284643283,-500.0,0.0002137,2]
[328376242,1717284643292,-500.0,0.0002137,2]
[328376243,1717284643302,-500.0,0.0002137,2]
[328376244,1717284643311,-500.0,0.0002137,2]
[328376245,1717284643321,-500.0,0.0002137,2]
[328376246,1717284643331,-500.0,0.0002137,2]
[328376247,1717284643340,-500.0,0.0002137,2]
[328376248,1717284643351,-150.0,0.000215,3]
[328376249,1717284643361,-170.58,0.00021918,2]
[328376250,1717284643371,-174.89,0.00021918,2]
[328376251,1717284643380,-250.0,0.00021918,2]
[328376252,1717284643389,-170.83,0.00021918,2]
[328376253,1717284643398,-789.19827628,0.00022,2]
[328376254,1717284643408,-958.01908416,0.00022,2]
[328376255,1717284643417,-240.13794176,0.00022,2]
[328376256,1717284643427,-1060.68670615,0.00022,2]
[328376257,1717284643436,-9161.51745053,0.00022,2]
[328376258,1717284643446,-150.0,0.00022,3]
[328376259,1717284643456,-1459.0,0.00022033,2]
[328376260,1717284643466,-976.0,0.00022033,2]
[328376261,1717284643637,-7060.018,0.00022033,2]
[328376262,1717284643647,-205.814779,0.00022076,7]
[328376263,1717284643656,-205.814779,0.00022076,7]
[328376264,1717284643666,-150.0,0.00022077,2]
[328376265,1717284643676,-156.03,0.00022077,2]
[328376266,1717284643685,-808.0,0.00022077,2]
[328376267,1717284643695,-150.0,0.00022077,2]
[328376268,1717284643706,-1694.518,0.00022077,2]
[328376269,1717284643715,-443.0,0.00022077,2]
[328376270,1717284643724,-216.0,0.00022077,2]
[328376271,1717284643734,-1304.0,0.00022077,2]
[328376272,1717284643743,-545.0,0.00022077,2]
[328376273,1717284643753,-289.0,0.00022077,2]
[328376274,1717284643762,-5145.0,0.00022077,2]
[328376275,1717284643771,-329.661,0.00022077,2]
[328376276,1717284643781,-150.0,0.00022077,2]
[328376277,1717284643790,-225.2130795,0.0002211,2]
[328376278,1717284643799,-22522.43293109,0.000225,2]
[328376279,1717284643808,-150.0,0.000225,3]
[328376280,1717284643817,-1740.6,0.0002274,2]
[328376281,1717284643826,-476.58,0.0002274,2]
[328376282,1717284643835,-416.58,0.0002274,2]
[328376283,1717284643844,-416.58,0.0002274,2]
[328376284,1717284643853,-416.58,0.0002274,2]
[328376285,1717284643862,-416.58,0.0002274,2]
[328376286,1717284643871,-416.58,0.0002274,2]
[328376287,1717284643879,-416.58,0.0002274,2]
[328376288,1717284643888,-416.58,0.0002274,2]
[328376289,1717284643897,-416.58,0.0002274,2]
[328376290,1717284643907,-150.0,0.00023,3]
[328376291,1717284643916,-173.0,0.00023,2]
[328376292,1717284643925,-357.24,0.00023407,2]
[328376293,1717284643934,-169.2598327,0.00023495,2]
[328376294,1717284643944,-150.0,0.000235,3]
[328376295,1717284643953,-548.55290876,0.00023846,2]
[328376296,1717284643962,-2500.0,0.0002386,2]
[328376297,1717284643971,-583.17736051,0.00024,3]
[328376298,1717284643980,-433.36217777,0.00024,2]
[328376299,1717284643990,-472.70724684,0.00024,2]
[328376300,1717284643999,-150.0,0.00024,4]
[328376301,1717284644016,-19999.99,0.00024174,2]
[328376302,1717284644027,-2935.96,0.00024174,2]
[328376303,1717284644036,-29999.99,0.00024174,2]
[328376304,1717284644046,-4417.99,0.00024174,2]
[328376305,1717284644057,-29999.99,0.00024174,2]
[328376306,1717284644066,-9999.99,0.00024174,2]
[328376307,1717284644076,-180.0,0.0002423,2]
[328376308,1717284644085,-718.06,0.00024247,2]
[328376309,1717284644095,-168.74,0.00024247,2]
[328376310,1717284644105,-276.55,0.00024247,2]
[328376311,1717284644114,-216.89,0.00024384,2]
[328376312,1717284644124,-266.99,0.00024384,2]
[328376313,1717284644134,-167.46,0.00024384,2]
[328376314,1717284644144,-1348.64433981,0.000245,3]
[328376315,1717284644154,-283.2050308,0.000245,2]
[328376316,1717284644164,-150.0,0.000245,4]
[328376317,1717284644174,-205.814779,0.00024798,7]
[328376318,1717284644183,-205.814779,0.00024798,7]
[328376319,1717284644193,-7055.77963744,0.00024798,2]
[328376320,1717284644202,-7055.77963741,0.00024798,2]
[328376321,1717284644211,-7055.77963741,0.00024798,2]
[328376322,1717284644221,-7055.77963741,0.00024798,2]
[328376323,1717284644230,-7055.77963741,0.00024798,2]
[328376324,1717284644240,-7055.77963741,0.00024798,2]
[328376325,1717284644249,-4443.14588636,0.00024799,2]
[328376326,1717284644258,-4443.14588636,0.00024799,2]
[328376327,1717284644268,-4443.14588636,0.00024799,2]
[328376328,1717284644277,-4443.14588636,0.00024799,2]
[328376329,1717284644287,-4443.14588636,0.00024799,2]
[328376330,1717284644296,-6784.955706,0.000249,2]
[328376331,1717284644306,-1500.0,0.000249,2]
[328376332,1717284644315,-176.83927421,0.000249,2]
[328376333,1717284644325,-164.15774032,0.000249,2]
[328376334,1717284644335,-3568.57937813,0.000249,2]
[328376335,1717284644344,-182.20526556,0.000249,2]
[328376336,1717284644354,-4443.14588636,0.00024952,2]
[328376337,1717284644364,-1000.0,0.00024976,2]
[328376338,1717284644373,-205.814779,0.0002498,7]
[328376339,1717284644383,-205.814779,0.0002498,7]
[328376340,1717284644392,-1274.06881089,0.00025,2]
[328376341,1717284644402,-2206.10204073,0.00025,2]
[328376342,1717284644412,-2862.5229736,0.00025,2]
[328376343,1717284644422,-155.0,0.00025,2]
[328376344,1717284644432,-224.47596139,0.00025,2]
[328376345,1717284644441,-213.48183145,0.00025,2]
[328376346,1717284644451,-248.97029145,0.00025,2]
[328376347,1717284644461,-155.0,0.00025,2]
[328376348,1717284644471,-715434.42369705,0.00025,2]
[328376349,1717284644480,-550.0,0.00025,2]
[328376350,1717284644489,-205.814779,0.00025,7]
[328376351,1717284644499,-205.814779,0.00025,7]
[328376352,1717284644508,-970.0,0.00025033,2]
[328376353,1717284644517,-197.172,0.00025077,2]
[328376354,1717284644526,-216.0,0.00025077,2]
[328376355,1717284644535,-450.115,0.00025077,2]
[328376356,1717284644545,-545.0,0.00025077,2]
[328376357,1717284644555,-282.075,0.00025077,2]
[328376358,1717284644564,-5124.0,0.00025077,2]
[328376359,1717284644574,-3568.57937813,0.00025655,2]
[328376360,1717284644583,-357.24,0.00025671,2]
[328376361,1717284644597,-163.36,0.0002589,2]
[328376362,1717284644606,-2681.27018363,0.00026167,2]
[328376363,1717284644616,-2500.0,0.0002636,2]
[328376364,1717284644625,-3568.57937813,0.00026409,2]
[328376365,1717284644635,-900.0,0.00026473,2]
[328376366,1717284644644,-169.2598327,0.0002673,2]
[328376367,1717284644653,-7055.77963741,0.00026884,2]
[328376368,1717284644665,-670.75883991,0.00026897,7]
[328376369,1717284644675,-600.0,0.00027,2]
[328376370,1717284644684,-4443.14588636,0.00027014,2]
[328376371,1717284644693,-900.0,0.00027021,2]
[328376372,1717284644703,-5000.0,0.00027123,2]
[328376373,1717284644713,-5000.0,0.00027123,2]
[328376374,1717284644722,-5000.0,0.00027123,2]
[328376375,1717284644731,-5000.0,0.00027123,2]
[328376376,1717284644740,-3568.57937813,0.00027164,2]
[328376377,1717284644749,-286.16,0.0002726,2]
[328376378,1717284644759,-150.0,0.0002726,2]
[328376379,1717284644767,-150.0,0.0002726,2]
[328376380,1717284644776,-150.0,0.0002726,2]
[328376381,1717284644786,-150.0,0.0002726,2]
[328376382,1717284644795,-150.0,0.00027397,2]
[328376383,1717284644805,-191.58878093,0.00027397,2]
[328376384,1717284644814,-150.0,0.00027397,2]
[328376385,1717284644823,-530.268836,0.00027457,2]
[328376386,1717284644833,-11519.47164,0.00027457,2]
[328376387,1717284644842,-8277.069611,0.00027457,2]
[328376388,1717284644851,-1544.342067,0.00027457,2]
[328376389,1717284644866,-321.15545,0.00027457,2]
[328376390,1717284644881,-186.883337,0.00027457,2]
[328376391,1717284644896,-704.947944,0.00027457,2]
[328376392,1717284644911,-533.268508,0.00027457,2]
[328376393,1717284644924,-150.0,0.00027534,2]
[328376394,1717284644936,-900.0,0.00027569,2]
[328376395,1717284644950,-150.0,0.00027671,2]
[328376396,1717284644963,-1500.0,0.000277,2]
[328376397,1717284644976,-11000.0,0.0002777,2]
[328376398,1717284644988,-205.814779,0.0002777,7]
[328376399,1717284645002,-205.814773,0.0002777,7]
[328376400,1717284645015,-530.268836,0.00027801,2]
[328376401,1717284645028,-11519.47164,0.00027801,2]
[328376402,1717284645043,-8277.069611,0.00027801,2]
[328376403,1717284645057,-1544.342067,0.00027801,2]
[328376404,1717284645069,-321.15545,0.00027801,2]
[328376405,1717284645081,-704.947944,0.00027801,2]
[328376406,1717284645092,-533.268508,0.00027801,2]
[328376407,1717284645105,-152.32799881,0.00027808,2]
[328376408,1717284645117,-3568.57937813,0.00027918,2]
[328376409,1717284645129,-357.24,0.00027935,2]
[328376410,1717284645143,-7874.06300079,0.00028,2]
[328376411,1717284645155,-213.0,0.00028077,2]
[328376412,1717284645168,-545.0,0.00028077,2]
[328376413,1717284645179,-25540.62525518,0.000281,15]
[328376414,1717284645189,-900.0,0.00028117,2]
[328376415,1717284645200,-150.0,0.00028118,2]
[328376416,1717284645211,-530.268836,0.00028144,2]
[328376417,1717284645223,-11519.47164,0.00028144,2]
[328376418,1717284645234,-8277.069611,0.00028144,2]
[328376419,1717284645246,-1544.342067,0.00028144,2]
[328376420,1717284645258,-321.15545,0.00028144,2]
[328376421,1717284645269,-704.947944,0.00028144,2]
[328376422,1717284645281,-533.268508,0.00028144,2]
[328376423,1717284645294,-300.0,0.000282,2]
[328376424,1717284645307,-530.268836,0.00028487,2]
[328376425,1717284645319,-11519.47164,0.00028487,2]
[328376426,1717284645329,-8277.069611,0.00028487,2]
[328376427,1717284645339,-1544.342067,0.00028487,2]
[328376428,1717284645349,-321.15545,0.00028487,2]
[328376429,1717284645359,-704.947944,0.00028487,2]
[328376430,1717284645371,-533.268508,0.00028487,2]
[328376431,1717284645384,-179.68,0.00028493,2]
[328376432,1717284645396,-300.0,0.00028571,2]
[328376433,1717284645409,-900.0,0.00028665,2]
[328376434,1717284645419,-3568.57937813,0.00028673,2]
[328376435,1717284645430,-186.883337,0.0002883,2]
[328376436,1717284645441,-530.268836,0.0002883,2]
[328376437,1717284645453,-11519.47164,0.0002883,2]
[328376438,1717284645465,-8277.069611,0.0002883,2]
[328376439,1717284645476,-1544.342067,0.0002883,2]
[328376440,1717284645486,-321.15545,0.0002883,2]
[328376441,1717284645496,-704.947944,0.0002883,2]
[328376442,1717284645507,-533.268508,0.0002883,2]
[328376443,1717284645518,-150.0,0.00028839,2]
[328376444,1717284645529,-538.28359419,0.00028942,2]
[328376445,1717284645541,-7055.77963741,0.00028989,2]
[328376446,1717284645552,-2052.95118628,0.00029,2]
[328376447,1717284645563,-189630.5490779,0.00029,2]
[328376448,1717284645574,-1485.36864596,0.00029,2]
[328376449,1717284645587,-650.0,0.00029,2]
[328376450,1717284645600,-164.15774031,0.0002905,2]
[328376451,1717284645611,-4443.14588636,0.00029076,2]
[328376452,1717284645622,-3568.57937813,0.00029427,2]
[328376453,1717284645634,-6871.842936,0.000295,2]
[328376454,1717284645646,-150.0,0.000295,2]
[328376455,1717284645658,-227.29188278,0.000295,3]
[328376456,1717284645673,-150.0,0.0002956,2]
[328376457,1717284645684,-690.0,0.00029635,5]
[328376458,1717284645695,-900.0,0.00029761,2]
[328376459,1717284645707,-10307.764404,0.000298,2]
[328376460,1717284645718,-2000.0,0.000298,14]
[328376461,1717284645729,-2008.73724465,0.000299,2]
[328376462,1717284645739,-169.2598327,0.00029965,2]
[328376463,1717284645750,-13743.685872,0.0003,2]
[328376464,1717284645761,-19403.63375217,0.0003,4]
[328376465,1717284645772,-23844.69262994,0.0003,4]
[328376466,1717284645782,-501.24015206,0.0003,2]
[328376467,1717284645793,-200.0,0.0003,2]
[328376468,1717284645804,-155.0,0.0003,2]
[328376469,1717284645815,-421.9455895,0.0003,4]
[328376470,1717284645825,-2280.0,0.000301,3]
[328376471,1717284645836,-3568.57937813,0.00030182,2]
[328376472,1717284645847,-357.24,0.00030199,2]
[328376473,1717284645858,-17179.60734,0.000302,2]
[328376474,1717284645869,-150.0,0.00030281,2]
[328376475,1717284645879,-266.99,0.0003031,2]
[328376476,1717284645890,-167.46,0.0003031,2]
[328376477,1717284645901,-24051.450276,0.000305,2]
[328376478,1717284645912,-27487.371744,0.000308,2]
[328376479,1717284645922,-200.180882,0.000308,3]
[328376480,1717284645933,-11728.0,0.000308,5]
[328376481,1717284645943,-900.0,0.00030857,10]
[328376482,1717284645954,-3568.57937813,0.00030936,2]
[328376483,1717284645964,-500.42891215,0.00031,2]
[328376484,1717284645975,-700.0,0.00031,2]
[328376485,1717284645986,-1296.786743,0.00031,2]
[328376486,1717284645997,-150.0,0.00031002,2]
[328376487,1717284646007,-539.0,0.00031077,2]
[328376488,1717284646018,-160.64230391,0.00031078,7]
[328376489,1717284646028,-7055.77963741,0.00031095,10]
[328376490,1717284646039,-157.94374797,0.00031096,7]
[328376491,1717284646049,-4443.14588636,0.00031138,10]
[328376492,1717284646060,-160.64230391,0.00031144,7]
[328376493,1717284646070,-265.41628419,0.000312,2]
[328376494,1717284646081,-160.64230391,0.0003121,7]
[328376495,1717284646092,-163.48005445,0.00031239,7]
[328376496,1717284646103,-155.0,0.000313,4]
[328376497,1717284646113,-160.64230391,0.00031352,7]
[328376498,1717284646124,-150.68644666,0.00031375,7]
[328376499,1717284646135,-150.68644666,0.00031406,7]
[328376500,1717284646146,-151.0,0.00031454,2]
[328376501,1717284646157,-250.49088,0.00031454,2]
[328376502,1717284646169,-8854.92808858,0.000315,4]
[328376503,1717284646180,-150.68644666,0.0003153,7]
[328376504,1717284646191,-150.68644666,0.00031533,7]
[328376505,1717284646201,-150.0,0.00031604,7]
[328376506,1717284646213,-150.0,0.00031604,7]
[328376507,1717284646224,-151.6146658,0.00031604,7]
[328376508,1717284646236,-151.55349239,0.00031604,7]
[328376510,1717284646247,-150.0,0.00031604,7]
[328376512,1717284646256,-150.0,0.00031604,7]
[328376514,1717284646266,-268.85204854,0.00031604,7]
[328376516,1717284646275,-152.24604925,0.00031604,7]
[328376518,1717284646285,-150.0,0.00031604,7]
[328376520,1717284646294,-150.0,0.00031604,7]
[328376521,1717284646425,-150.0,0.00031604,7]
[328376522,1717284646480,-159.42441193,0.00031604,7]
[328376523,1717284646492,-150.0,0.00031604,7]
[328376524,1717284646502,-151.54,0.00031644,2]
[328376525,1717284646511,-150.68644666,0.00031684,7]
[328376526,1717284646521,-3568.57937813,0.00031691,3]
[328376527,1717284646530,-150.0,0.00031721,7]
[328376528,1717284646539,-150.0,0.00031723,2]
[328376529,1717284646548,-151.97604568,0.0003178,7]
[328376530,1717284646557,-150.68644666,0.00031808,7]
[328376531,1717284646567,-150.0,0.00031811,7]
[328376532,1717284646575,-150.0,0.00031824,7]
[328376533,1717284646585,-150.0,0.00031839,7]
[328376534,1717284646597,-150.0,0.00031897,7]
[328376535,1717284646606,-4737.69552645,0.00031921,120]
[328376536,1717284646615,-900.0,0.00031953,10]
[328376537,1717284646624,-150.0,0.00031956,7]
[328376538,1717284646634,-150.0,0.00031956,7]
[328376539,1717284646643,-302.0,0.00031982,4]
[328376540,1717284646652,-155.0,0.00032,4]
[328376541,1717284646662,-620.17077066,0.00032,2]
[328376542,1717284646672,-10703.13494133,0.00032,4]
[328376543,1717284646682,-12271.31319196,0.00032,4]
[328376544,1717284646691,-5086.41133842,0.00032,4]
[328376545,1717284646700,-3280.02211365,0.00032,4]
[328376546,1717284646710,-4829.11879843,0.00032,4]
[328376547,1717284646719,-509.23732317,0.00032,2]
[328376548,1717284646728,-509.23732317,0.00032,2]
[328376549,1717284646737,-509.23732317,0.00032,2]
[328376550,1717284646746,-509.23732317,0.00032,2]
[328376551,1717284646755,-509.23732317,0.00032,2]
[328376552,1717284646764,-509.23732317,0.00032,2]
[328376553,1717284646774,-509.23732317,0.00032,2]
[328376554,1717284646783,-509.23732317,0.00032,2]
[328376555,1717284646792,-509.23732317,0.00032,2]
[328376556,1717284646801,-509.23732317,0.00032,2]
[328376557,1717284646810,-509.23732317,0.00032,2]
[328376558,1717284646819,-509.23732317,0.00032,2]
[328376559,1717284646828,-509.23732317,0.00032,2]
[328376560,1717284646838,-509.23732317,0.00032,2]
[328376561,1717284646846,-509.23732317,0.00032,2]
[328376562,1717284646856,-509.23732317,0.00032,2]
[328376563,1717284646865,-509.23732317,0.00032,2]
[328376564,1717284646874,-509.23732317,0.00032,2]
[328376565,1717284646883,-509.23732317,0.00032,2]
[328376566,1717284646892,-509.23732317,0.00032,2]
[328376567,1717284646901,-509.23732317,0.00032,2]
[328376568,1717284646909,-509.23732317,0.00032,2]
[328376569,1717284646920,-509.23732317,0.00032,2]
[328376570,1717284646929,-509.23732317,0.00032,2]
[328376571,1717284646942,-509.23732317,0.00032,2]
[328376572,1717284646951,-509.23732317,0.00032,2]
[328376573,1717284646960,-509.23732317,0.00032,2]
[328376574,1717284646969,-509.23732317,0.00032,2]
[328376575,1717284646979,-509.23732317,0.00032,2]
[328376576,1717284646988,-509.23732317,0.00032,2]
[328376577,1717284646997,-509.23732317,0.00032,2]
[328376578,1717284647007,-509.23732317,0.00032,2]
[328376579,1717284647015,-509.23732317,0.00032,2]
[328376580,1717284647024,-509.23732317,0.00032,2]
[328376581,1717284647034,-509.23732317,0.00032,2]
[328376582,1717284647043,-509.23732317,0.00032,2]
[328376583,1717284647053,-509.23732317,0.00032,2]
[328376584,1717284647062,-509.23732317,0.00032,2]
[328376585,1717284647071,-509.23732317,0.00032,2]
[328376586,1717284647081,-509.23732317,0.00032,2]
[328376587,1717284647091,-509.23732317,0.00032,2]
[328376588,1717284647100,-509.23732317,0.00032,2]
[328376589,1717284647110,-509.23732317,0.00032,2]
[328376590,1717284647118,-509.23732317,0.00032,2]
[328376591,1717284647128,-509.23732317,0.00032,2]
[328376592,1717284647137,-509.23732317,0.00032,2]
[328376593,1717284647146,-509.23732317,0.00032,2]
[328376594,1717284647156,-509.23732317,0.00032,2]
[328376595,1717284647166,-509.23732317,0.00032,2]
[328376596,1717284647175,-509.23732317,0.00032,2]
[328376597,1717284647184,-150.0,0.00032018,7]
[328376598,1717284647193,-150.0,0.00032043,7]
[328376599,1717284647202,-150.0,0.00032073,7]